bitfinex-derivatives/quotes_BTCF0:USTF0_20251118
["timestamp","ask_amount","ask_price","bid_price","bid_amount"]
[1763428817773,0.3608,92161.0,92160.0,0.03446803]
[1763428818068,0.3608,92161.0,92160.0,0.06864803]
[1763428818571,0.6244,92161.0,92160.0,0.06864803]
[1763428818958,0.6244,92161.0,92160.0,0.08658803]
[1763428819163,0.6254,92161.0,92160.0,0.08658803]
[1763428819559,0.6264,92161.0,92160.0,0.08658803]
[1763428819769,0.6264,92161.0,92160.0,0.01794]
[1763428819972,0.6264,92161.0,92160.0,0.08323803]
[1763428821168,7.681e-05,92168.0,92167.0,0.0631]
[1763428821373,0.3608,92178.0,92160.0,0.02013803]
[1763428821374,0.3608,92178.0,92173.0,0.0631]
[1763428821573,0.3608,92178.0,92177.0,0.0631]
[1763428821880,0.26364,92181.0,92180.0,0.06529803]
[1763428822173,0.26364,92181.0,92180.0,0.0620307]
[1763428823070,0.00219803,92180.0,92175.0,0.01794]
[1763428823877,0.00219803,92180.0,92179.0,0.03282]
[1763428824077,0.00219803,92180.0,92179.0,0.0631]
[1763428824467,0.00319803,92180.0,92179.0,0.0631]
[1763428825978,0.00419803,92180.0,92179.0,0.0631]
[1763428828978,0.00319803,92180.0,92179.0,0.0631]
[1763428830082,0.3608,92188.0,92187.0,0.06272]
[1763428832969,0.3618,92188.0,92187.0,0.06272]
[1763428833174,0.001,92188.0,92187.0,0.06272]
[1763428835180,0.00236022,92190.0,92189.0,0.06272]
[1763428836775,0.00336022,92190.0,92189.0,0.06272]
[1763428837478,0.00336022,92190.0,92183.0,0.01742]
[1763428837479,0.36416022,92190.0,92183.0,0.01742]
[1763428839787,0.36416022,92190.0,92178.0,0.00016269]
[1763428839982,0.3608,92179.0,92178.0,0.00016269]
[1763428840284,0.62444,92179.0,92178.0,0.00016269]
[1763428841385,0.62444,92179.0,92146.0,0.3608]
[1763428841589,0.3608,92162.0,92161.0,0.06272]
[1763428841788,0.62444,92162.0,92161.0,0.06272]
[1763428842279,0.62444,92162.0,92160.0,0.01794]
[1763428842280,0.70921903,92162.0,92160.0,0.01794]
[1763428843085,0.71021903,92162.0,92160.0,0.01794]
[1763428843280,0.71021903,92162.0,92161.0,0.06272]
[1763428843477,0.44657903,92162.0,92161.0,0.06272]
[1763428843687,0.71025903,92162.0,92161.0,0.06272]
[1763428844076,0.71025903,92162.0,92160.0,0.01794]
[1763428844481,0.70925903,92162.0,92160.0,0.01794]
[1763428844678,0.71025903,92162.0,92160.0,0.01794]
[1763428844883,0.71025903,92162.0,92152.0,0.00016269]
[1763428845084,0.3608,92153.0,92152.0,0.06288269]
[1763428845285,0.62448,92153.0,92152.0,0.06288269]
[1763428845896,0.62448,92153.0,92152.0,0.00016269]
[1763428846193,0.62548,92153.0,92152.0,0.00016269]
[1763428849500,0.62548,92153.0,92152.0,0.06288269]
[1763428851899,0.3618,92153.0,92152.0,0.06288269]
[1763428852104,0.62552,92153.0,92152.0,0.06288269]
[1763428853001,0.62552,92153.0,92152.0,0.00016269]
[1763428853500,0.00219803,92150.0,92136.0,0.01742]
[1763428853706,0.7216,92137.0,92110.0,0.03886128]
[1763428854006,0.7216,92137.0,92102.0,0.3608]
[1763428854007,0.26372,92136.0,92130.0,0.00073267]
[1763428854194,0.7216,92137.0,92136.0,0.08014]
[1763428854394,0.98532,92137.0,92136.0,0.01742]
[1763428854899,0.98532,92137.0,92136.0,0.08014]
[1763428855094,0.98632,92137.0,92136.0,0.08014]
[1763428855997,0.62552,92137.0,92136.0,0.08014]
[1763428857102,0.62552,92137.0,92136.0,0.01742]
[1763428857307,0.62452,92137.0,92136.0,0.01742]
[1763428857605,0.62552,92137.0,92136.0,0.07768]
[1763428858003,0.62452,92137.0,92136.0,0.07768]
[1763428858194,0.62552,92137.0,92127.0,0.00016279]
[1763428858399,0.3608,92128.0,92127.0,0.00016279]
[1763428858593,0.3608,92128.0,92092.0,0.01655]
[1763428858594,0.62456,92128.0,92103.0,0.01742]
[1763428858900,0.3608,92115.0,92103.0,0.01742]
[1763428859100,0.62456,92115.0,92114.0,1.51742]
[1763428860199,0.3608,92115.0,92114.0,1.51742]
[1763428860402,0.1301037,92124.0,92114.0,1.51742]
[1763428860403,0.00016279,92124.0,92123.0,0.06026]
[1763428860995,0.001,92128.0,92127.0,0.06026]
[1763428861201,0.3608,92153.0,92148.0,0.01655]
[1763428861401,0.3608,92153.0,92152.0,0.06026]
[1763428861709,0.3608,92153.0,92152.0,0.02889]
[1763428861903,0.3608,92153.0,92152.0,0.06026]
[1763428864805,0.3618,92153.0,92152.0,0.06026]
[1763428865606,0.3618,92153.0,92143.0,0.00016279]
[1763428865917,0.3608,92144.0,92143.0,0.00016279]
[1763428866099,0.62456,92144.0,92143.0,0.00016279]
[1763428866405,0.00219803,92140.0,92124.0,0.01655]
[1763428866808,0.00219803,92140.0,92120.0,0.00073267]
[1763428866809,0.3608,92127.0,92120.0,0.00073267]
[1763428867012,0.26376,92126.0,92120.0,0.00073267]
[1763428867219,0.08592478,92126.0,92125.0,0.06026]
[1763428867517,0.3608,92127.0,92126.0,0.06026]
[1763428867707,0.62456,92127.0,92126.0,0.06026]
[1763428868102,0.002,92126.0,92114.0,1.51758279]
[1763428868406,0.00219803,92120.0,92119.0,0.06026]
[1763428870711,0.001,92127.0,92126.0,0.06026]
[1763428871216,0.2638,92127.0,92126.0,0.06026]
[1763428872103,0.2648,92127.0,92126.0,0.06026]
[1763428872516,0.2648,92127.0,92114.0,1.51758279]
[1763428872713,0.3608,92122.0,92120.0,0.00219803]
[1763428873212,0.3608,92122.0,92121.0,0.06026]
[1763428873614,0.6246,92122.0,92121.0,0.06026]
[1763428874302,0.001,92127.0,92126.0,0.06026]
[1763428874506,0.2638,92127.0,92126.0,0.06026]
[1763428874808,0.3608,92131.0,92130.0,0.06245803]
[1763428875111,0.6246,92131.0,92130.0,0.06245803]
[1763428877011,0.6256,92131.0,92130.0,0.06245803]
[1763428879215,0.6256,92131.0,92130.0,0.06026]
[1763428879406,0.6256,92131.0,92124.0,0.01655]
[1763428880511,0.6256,92131.0,92114.0,0.01758279]
[1763428880512,0.1618065,92130.0,92114.0,0.01758279]
[1763428880710,0.3608,92115.0,92114.0,0.01758279]
[1763428880910,0.6246,92115.0,92114.0,0.07181279]
[1763428881115,0.3608,92115.0,92114.0,0.07181279]
[1763428881619,0.6246,92115.0,92114.0,0.07181279]
[1763428883611,0.6256,92115.0,92114.0,0.07181279]
[1763428885010,0.6246,92115.0,92114.0,0.07181279]
[1763428885217,0.6256,92115.0,92114.0,0.07181279]
[1763428886616,0.6246,92115.0,92114.0,0.07181279]
[1763428886815,0.6256,92115.0,92114.0,0.04647279]
[1763428887009,0.6256,92115.0,92114.0,0.07328279]
[1763428888614,0.6256,92115.0,92114.0,0.01758279]
[1763428889316,0.6256,92115.0,92114.0,0.01484279]
[1763428889510,0.6256,92115.0,92106.0,1.5]
[1763428889710,0.3608,92107.0,92106.0,1.5]
[1763428889910,0.6246,92107.0,92106.0,1.5]
[1763428890311,0.6246,92107.0,92105.0,9.631e-05]
[1763428891424,0.6256,92107.0,92105.0,9.631e-05]
[1763428891722,0.6256,92107.0,92097.0,0.00016279]
[1763428892027,0.3608,92098.0,92097.0,0.00016279]
[1763428892225,0.3608,92098.0,92073.0,0.03886128]
[1763428892226,0.62464,92098.0,92071.0,0.03886128]
[1763428892517,0.62464,92098.0,92059.0,0.37548]
[1763428892518,0.3608,92087.0,92086.0,0.05326]
[1763428892719,0.26393631,92087.0,92086.0,0.05326]
[1763428894027,9.631e-05,92087.0,92086.0,0.05326]
[1763428894215,0.26393631,92087.0,92086.0,0.05326]
[1763428894418,9.631e-05,92087.0,92086.0,0.05326]
[1763428894619,0.08579049,92093.0,92092.0,0.05326]
[1763428894812,0.36096279,92111.0,92098.0,0.05326]
[1763428894813,0.26384,92099.0,92098.0,0.05326]
[1763428896715,0.26484,92099.0,92098.0,0.05326]
[1763428897215,0.26484,92099.0,92088.0,0.01468]
[1763428897527,0.26384,92099.0,92098.0,0.02645]
[1763428897719,0.26484,92099.0,92098.0,0.02645]
[1763428897916,0.26484,92099.0,92088.0,0.01468]
[1763428898117,0.26484,92099.0,92090.0,0.00219803]
[1763428898320,0.26384,92099.0,92098.0,0.05326]
[1763428899922,0.26484,92099.0,92098.0,0.05326]
[1763428900631,0.26384,92099.0,92098.0,0.05326]
[1763428900828,0.26484,92099.0,92098.0,0.05326]
[1763428901625,0.26484,92099.0,92098.0,0.02645]
[1763428902733,0.26484,92099.0,92088.0,0.01468]
[1763428903030,0.3608,92093.0,92092.0,0.05326]
[1763428904028,0.26484,92099.0,92098.0,0.05326]
[1763428904029,0.26384,92099.0,92098.0,0.05326]
[1763428904332,0.26384,92099.0,92088.0,0.01468]
[1763428904523,0.26384,92099.0,92090.0,0.00219803]
[1763428904727,0.26384,92099.0,92098.0,0.05326]
[1763428904931,0.26384,92099.0,92088.0,0.01468]
[1763428904932,0.3608,92103.0,92102.0,0.05326]
[1763428905128,0.26384,92103.0,92102.0,0.05326]
[1763428906326,0.26384,92103.0,92100.0,0.01687803]
[1763428906633,0.62564,92103.0,92090.0,0.00219803]
[1763428907430,0.3608,92094.0,92090.0,0.00219803]
[1763428907630,0.23773109,92093.0,92090.0,0.00219803]
[1763428909531,0.23773109,92093.0,92088.0,0.01468]
[1763428909831,0.23773109,92093.0,92092.0,0.05326]
[1763428910030,0.23773109,92093.0,92090.0,0.00219803]
[1763428910232,0.23873109,92093.0,92090.0,0.00219803]
[1763428910432,0.23873109,92093.0,92092.0,0.05326]
[1763428911135,0.23873109,92093.0,92090.0,0.00219803]
[1763428912035,0.23873109,92093.0,92092.0,0.05326]
[1763428912225,0.23873109,92093.0,92092.0,0.02645]
[1763428912632,0.23773109,92093.0,92090.0,0.00219803]
[1763428912833,0.23873109,92093.0,92090.0,0.00219803]
[1763428913937,0.23773109,92093.0,92090.0,0.00219803]
[1763428914140,0.23873109,92093.0,92090.0,0.02864803]
[1763428915530,0.23873109,92093.0,92090.0,0.00219803]
[1763428916236,0.23873109,92093.0,92068.0,0.3608]
[1763428916237,0.3608,92091.0,92068.0,0.3608]
[1763428916435,0.3608,92078.0,92068.0,0.3608]
[1763428916635,0.62464,92078.0,92077.0,1.50010928]
[1763428917037,0.62464,92078.0,92077.0,0.00010928]
[1763428917433,0.3608,92078.0,92077.0,0.05239928]
[1763428917738,0.62464,92078.0,92077.0,0.05239928]
[1763428918834,0.05829054,92086.0,92084.0,0.05263]
[1763428919035,0.09600628,92106.0,92098.0,0.05263]
[1763428919036,0.3608,92099.0,92098.0,0.05263]
[1763428919340,0.70977487,92106.0,92105.0,0.05263]
[1763428920645,0.26384,92106.0,92105.0,0.05263]
[1763428921344,0.34938351,92106.0,92105.0,0.02679]
[1763428921543,0.34938351,92106.0,92100.0,0.01581803]
[1763428921935,0.35038351,92106.0,92105.0,0.05263]
[1763428922131,0.001,92106.0,92105.0,0.05263]
[1763428922337,0.26484,92106.0,92105.0,0.05263]
[1763428922548,0.26484,92106.0,92100.0,0.37661803]
[1763428922549,0.00016288,92115.0,92114.0,0.06625]
[1763428922744,0.26400288,92115.0,92114.0,0.06625]
[1763428924645,0.26400288,92115.0,92114.0,0.01362]
[1763428925041,0.26400288,92115.0,92114.0,0.06625]
[1763428925349,0.26400288,92115.0,92114.0,0.01362]
[1763428926044,0.26400288,92115.0,92100.0,0.37442]
[1763428926246,0.12991056,92110.0,92100.0,0.37661803]
[1763428926745,0.3608,92105.0,92104.0,0.02679]
[1763428926945,0.59849404,92105.0,92104.0,0.05263]
[1763428928351,0.00016288,92115.0,92114.0,0.06625]
[1763428928547,0.26396288,92115.0,92114.0,0.06625]
[1763428928744,0.00016288,92115.0,92114.0,0.06625]
[1763428929540,0.00016288,92115.0,92114.0,0.04041]
[1763428929744,0.00016288,92115.0,92114.0,0.06625]
[1763428929944,0.00116288,92115.0,92114.0,0.06625]
[1763428932242,0.00116288,92115.0,92114.0,0.01362]
[1763428932444,0.00116288,92115.0,92114.0,0.04041]
[1763428932654,0.00116288,92115.0,92114.0,0.06625]
[1763428932842,0.00016288,92115.0,92114.0,0.06625]
[1763428933044,0.00116288,92115.0,92114.0,0.01362]
[1763428933348,0.00116288,92115.0,92100.0,0.37442]
[1763428933349,0.10972288,92115.0,92100.0,0.37442]
[1763428933652,0.3608,92105.0,92100.0,0.01362]
[1763428933837,0.26376,92104.0,92100.0,0.01362]
[1763428934038,0.26376,92104.0,92096.0,0.00016288]
[1763428934250,0.3608,92097.0,92096.0,0.05279288]
[1763428934451,0.62456,92097.0,92096.0,0.05279288]
[1763428935051,0.62456,92097.0,92096.0,0.00016288]
[1763428935753,0.62556,92097.0,92096.0,0.00016288]
[1763428937454,0.62556,92097.0,92090.0,0.01362]
[1763428937656,0.3608,92096.0,92090.0,0.01362]
[1763428937950,0.26376,92095.0,92090.0,0.01581803]
[1763428938651,0.3608,92096.0,92095.0,0.04473]
[1763428938954,0.62556,92096.0,92095.0,0.04473]
[1763428939456,0.3618,92096.0,92095.0,0.04473]
[1763428939660,0.62556,92096.0,92095.0,0.04473]
[1763428940257,0.3618,92096.0,92095.0,0.04473]
[1763428940562,0.62556,92096.0,92095.0,0.04473]
[1763428941746,0.26376,92096.0,92095.0,0.04473]
[1763428942052,0.26476,92096.0,92090.0,0.01581803]
[1763428942448,0.26476,92096.0,92095.0,0.04473]
[1763428943050,0.001,92096.0,92095.0,0.04473]
[1763428943249,0.26476,92096.0,92095.0,0.04473]
[1763428943956,0.26376,92096.0,92095.0,0.04473]
[1763428944159,0.00016288,92115.0,92114.0,0.05787]
[1763428944546,0.26392288,92115.0,92114.0,0.05787]
[1763428945759,0.26492288,92115.0,92114.0,0.05787]
[1763428945952,0.26492288,92115.0,92114.0,0.01314]
[1763428948064,0.00116288,92115.0,92114.0,0.05761]
[1763428948262,0.26492288,92115.0,92114.0,0.05761]
[1763428948762,0.26492288,92115.0,92114.0,0.01314]
[1763428949757,0.26492288,92115.0,92114.0,0.03519]
[1763428950256,0.26492288,92115.0,92114.0,0.05788]
[1763428951652,0.26492288,92115.0,92114.0,0.01314]
[1763428951965,0.26492288,92115.0,92114.0,0.05788]
[1763428953362,0.00116288,92115.0,92114.0,0.05788]
[1763428958370,0.36107137,92126.0,92125.0,0.05637]
[1763428958563,0.00027137,92126.0,92125.0,0.05637]
[1763428959167,0.3608,92145.0,92142.0,0.04474]
[1763428959168,0.05850935,92144.0,92142.0,0.04474]
[1763428959364,0.26368,92144.0,92134.0,0.00016288]
[1763428959669,0.26368,92144.0,92143.0,0.04474]
[1763428960763,0.26468,92144.0,92143.0,0.04474]
[1763428961166,0.001,92144.0,92143.0,0.04474]
[1763428961660,0.00016288,92152.0,92151.0,0.04474]
[1763428961861,0.00016288,92152.0,92151.0,0.40554]
[1763428962062,0.04484288,92152.0,92151.0,0.02205]
[1763428962271,0.00016288,92152.0,92151.0,0.04474]
[1763428962468,0.00016288,92152.0,92151.0,0.40554]
[1763428963064,0.00116288,92152.0,92151.0,0.40554]
[1763428963380,0.26368,92162.0,92161.0,0.04474]
[1763428964369,0.28537,92162.0,92161.0,0.04474]
[1763428964569,0.28637,92162.0,92161.0,0.04474]
[1763428964864,0.26468,92162.0,92161.0,0.04474]
[1763428965581,0.04568,92162.0,92161.0,0.04474]
[1763428965770,0.02269,92162.0,92161.0,0.04474]
[1763428965968,0.001,92162.0,92161.0,0.04474]
[1763428967175,0.02269,92162.0,92161.0,0.04474]
[1763428967376,0.04568,92162.0,92161.0,0.04474]
[1763428967679,0.04468,92161.0,92160.0,0.00219803]
[1763428969178,0.04568,92161.0,92160.0,0.00219803]
[1763428970085,0.04568,92161.0,92160.0,0.02424803]
[1763428970286,0.001,92161.0,92160.0,0.04693803]
[1763428970488,0.02269,92161.0,92160.0,0.04693803]
[1763428970779,0.04568,92161.0,92160.0,0.04693803]
[1763428972483,0.02269,92161.0,92160.0,0.04693803]
[1763428972687,0.04568,92161.0,92160.0,0.04693803]
[1763428974093,0.001,92161.0,92160.0,0.04693803]
[1763428974383,0.001,92161.0,92160.0,0.05905803]
[1763428974591,0.04568,92161.0,92160.0,0.04693803]
[1763428974784,0.001,92161.0,92160.0,0.04693803]
[1763428974982,0.001,92161.0,92160.0,0.05905803]
[1763428975384,0.02196125,92166.0,92165.0,0.04474]
[1763428975688,0.02196125,92166.0,92141.0,0.3608]
[1763428975689,0.04468,92124.0,92123.0,0.3608]
[1763428975993,0.04468,92104.0,92100.0,0.05811213]
[1763428976195,0.01327,92112.0,92100.0,0.05811213]
[1763428976196,0.04468,92101.0,92100.0,0.00219803]
[1763428976485,0.0676,92106.0,92105.0,0.02205]
[1763428976676,0.04364,92101.0,92100.0,0.00219803]
[1763428977086,0.04306,92097.0,92096.0,0.00016278]
[1763428977292,0.40386,92097.0,92096.0,0.00016278]
[1763428978886,0.40386,92097.0,92096.0,0.02252278]
[1763428978887,0.04306,92097.0,92096.0,0.02252278]
[1763428979682,0.04306,92097.0,92096.0,0.00016278]
[1763428979890,0.04306,92101.0,92100.0,0.00219803]
[1763428980386,0.02111,92101.0,92100.0,0.04603803]
[1763428980581,0.04306,92101.0,92100.0,0.00219803]
[1763428981682,0.0881217,92105.0,92104.0,0.04384]
[1763428981882,0.04322278,92115.0,92114.0,0.02236]
[1763428982082,0.30678278,92115.0,92114.0,0.02236]
[1763428982489,0.04322278,92115.0,92114.0,0.02236]
[1763428982683,0.13011411,92115.0,92114.0,0.02236]
[1763428982889,0.13011411,92115.0,92114.0,0.04384]
[1763428983194,0.05603,92112.0,92111.0,0.3608]
[1763428983387,0.04306,92111.0,92110.0,0.00219803]
[1763428983588,0.04306,92097.0,92096.0,0.00016278]
[1763428983887,0.04306,92097.0,92096.0,0.04400278]
[1763428984085,0.01297,92112.0,92100.0,0.00219803]
[1763428984285,0.04306,92101.0,92100.0,0.02455803]
[1763428984596,0.04306,92097.0,92096.0,0.00016278]
[1763428986199,0.04306,92097.0,92096.0,0.04400278]
[1763428987095,0.2636,92106.0,92105.0,0.04384]
[1763428987301,0.04306,92101.0,92100.0,0.02455803]
[1763428987501,0.04306,92101.0,92100.0,0.00219803]
[1763428989104,0.04406,92101.0,92100.0,0.00219803]
[1763428990694,0.001,92101.0,92100.0,0.05829803]
[1763428993802,0.08705411,92115.0,92114.0,0.04384]
[1763428994204,0.00016278,92115.0,92114.0,0.04384]
[1763428994509,0.38191,92136.0,92135.0,0.02236]
[1763428994699,0.3608,92136.0,92135.0,0.04384]
[1763428995210,0.04306,92136.0,92135.0,0.04384]
[1763428995403,0.04306,92131.0,92130.0,0.00219803]
[1763428995612,0.04306,92131.0,92130.0,0.04603803]
[1763428995905,0.14317095,92136.0,92135.0,0.02236]
[1763428996100,0.13020095,92136.0,92135.0,0.04384]
[1763428996609,0.10825095,92136.0,92135.0,0.04384]
[1763428996911,0.08714095,92136.0,92135.0,0.04384]
[1763428997110,0.02111,92136.0,92135.0,0.04384]
[1763428997302,0.02211,92136.0,92135.0,0.04384]
[1763428997810,0.10999835,92136.0,92135.0,0.04384]
[1763428998009,0.02111,92131.0,92130.0,0.00219803]
[1763428998201,0.04306,92131.0,92130.0,0.02455803]
[1763428998807,0.04306,92131.0,92130.0,0.04603803]
[1763428999098,0.04306,92131.0,92130.0,0.00219803]
[1763428999698,0.10170477,92136.0,92135.0,0.04459]
[1763428999699,0.13260477,92136.0,92135.0,0.04459]
[1763429000212,0.2636,92142.0,92135.0,0.04459]
[1763429000410,0.28584,92142.0,92141.0,0.04459]
[1763429000611,0.30847,92142.0,92141.0,0.04459]
[1763429000912,0.04487,92141.0,92140.0,0.00219803]
[1763429001112,0.36096287,92145.0,92144.0,0.04459]
[1763429001302,0.00016287,92145.0,92144.0,0.04459]
[1763429001609,0.26356,92160.0,92159.0,0.04459]
[1763429001811,0.30843,92160.0,92159.0,0.04459]
[1763429002006,0.04487,92155.0,92154.0,0.3608]
[1763429002214,0.29901,92160.0,92159.0,0.04459]
[1763429002508,0.4088973,92160.0,92159.0,0.04459]
[1763429002708,0.30843,92160.0,92159.0,0.04459]
[1763429002911,0.26356,92160.0,92159.0,0.04459]
[1763429003104,0.01313278,92169.0,92159.0,0.04459]
[1763429003304,0.02251125,92166.0,92165.0,0.04459]
[1763429004305,0.04514125,92166.0,92165.0,0.04459]
[1763429004510,0.00027125,92166.0,92165.0,0.04459]
[1763429004914,0.02351125,92166.0,92165.0,0.04459]
[1763429005110,0.04487,92165.0,92164.0,0.3608]
[1763429005310,0.04487,92161.0,92160.0,0.04678803]
[1763429006404,0.1337751,92166.0,92165.0,0.04459]
[1763429006917,0.00127125,92166.0,92165.0,0.04459]
[1763429008113,0.00027125,92166.0,92165.0,0.04459]
[1763429008416,0.00127125,92166.0,92165.0,0.04459]
[1763429008912,0.02266125,92166.0,92165.0,0.04459]
[1763429009110,0.04390125,92166.0,92165.0,0.04459]
[1763429009712,0.00127125,92166.0,92165.0,0.04459]
[1763429010114,0.00027125,92166.0,92165.0,0.04459]
[1763429010312,0.00127125,92166.0,92165.0,0.04459]
[1763429010716,0.04263,92164.0,92163.0,0.3608]
[1763429010910,0.04263,92161.0,92160.0,0.04575803]
[1763429011518,0.04390125,92166.0,92165.0,0.04356]
[1763429011814,0.04290125,92166.0,92165.0,0.04356]
[1763429012410,0.04263,92161.0,92160.0,0.02379803]
[1763429012611,0.04290125,92166.0,92165.0,0.04356]
[1763429012816,0.00027125,92166.0,92165.0,0.40436]
[1763429013213,0.02166125,92166.0,92165.0,0.40436]
[1763429013513,0.00127125,92166.0,92165.0,0.40436]
[1763429014910,0.04390125,92166.0,92165.0,0.3824]
[1763429015219,0.04390125,92166.0,92165.0,0.40436]
[1763429016418,0.04263,92161.0,92160.0,0.00219803]
[1763429016617,0.04263,92161.0,92150.0,0.00016278]
[1763429016618,0.04263,92151.0,92150.0,0.00016278]
[1763429017222,0.04263,92151.0,92150.0,0.00220081]
[1763429018419,0.04263,92151.0,92150.0,0.04576081]
[1763429018826,0.04263,92151.0,92150.0,0.00220081]
[1763429019216,0.04263,92151.0,92150.0,0.04576081]
[1763429019524,0.04263,92151.0,92150.0,0.00220081]
[1763429021014,0.3608,92153.0,92150.0,2.78e-06]
[1763429022015,0.01386,92158.0,92150.0,2.78e-06]
[1763429022220,0.04263,92151.0,92150.0,0.02380081]
[1763429022524,0.04263,92151.0,92150.0,0.00220081]
[1763429022827,0.3618,92153.0,92150.0,2.78e-06]
[1763429023524,0.3608,92153.0,92150.0,2.78e-06]
[1763429024523,0.3618,92153.0,92150.0,2.78e-06]
[1763429024822,0.04263,92137.0,92136.0,0.3608]
[1763429025019,0.02139,92137.0,92136.0,0.40436]
[1763429025819,0.04263,92137.0,92136.0,0.40436]
[1763429026420,0.12812749,92137.0,92136.0,0.3608]
[1763429028827,0.12912749,92137.0,92136.0,0.3608]
[1763429029519,0.12812749,92137.0,92136.0,0.3608]
[1763429029726,0.12912749,92137.0,92136.0,0.3608]
[1763429030230,0.12812749,92137.0,92136.0,0.3608]
[1763429030427,0.12912749,92137.0,92136.0,0.3608]
[1763429030730,0.12912749,92137.0,92127.0,0.00016278]
[1763429030731,0.04263,92128.0,92127.0,0.00016278]
[1763429030925,0.03792177,92128.0,92127.0,0.00016278]
[1763429031627,0.03792177,92128.0,92127.0,0.04372278]
[1763429031822,0.03792177,92128.0,92127.0,0.02176278]
[1763429032225,0.03892177,92128.0,92127.0,0.00016278]
[1763429033432,0.03792177,92128.0,92127.0,0.00016278]
[1763429033629,0.03892177,92128.0,92127.0,0.00016278]
[1763429034726,0.04263,92110.0,92109.0,0.3608]
[1763429034925,0.04263,92110.0,92109.0,0.3824]
[1763429035126,0.04263,92110.0,92109.0,0.40436]
[1763429035728,0.2634,92114.0,92113.0,0.04356]
[1763429035929,0.28479,92114.0,92113.0,0.04356]
[1763429036129,0.30603,92114.0,92113.0,0.04356]
[1763429036522,0.2634,92114.0,92113.0,0.04356]
[1763429036724,0.28479,92114.0,92113.0,0.04356]
[1763429037122,0.04438,92111.0,92110.0,0.00219803]
[1763429037631,0.05793,92110.0,92109.0,0.3608]
[1763429038037,0.04438,92110.0,92109.0,0.40433]
[1763429038233,0.30778,92114.0,92113.0,0.04353]
[1763429038628,0.04438,92114.0,92113.0,0.04353]
[1763429038927,0.30782,92114.0,92113.0,0.04353]
[1763429039438,0.04438,92114.0,92113.0,0.04353]
[1763429039838,0.30782,92114.0,92113.0,0.04353]
[1763429040236,0.30782,92114.0,92110.0,0.00219803]
[1763429040237,0.04438,92111.0,92110.0,0.00219803]
[1763429040446,0.26344,92114.0,92101.0,0.38259]
[1763429040447,0.04438,92102.0,92101.0,0.38259]
[1763429040632,0.01827406,92102.0,92101.0,0.40433]
[1763429040832,0.26344,92114.0,92101.0,0.40433]
[1763429042545,0.30782,92114.0,92113.0,0.04353]
[1763429042739,0.04454278,92119.0,92118.0,0.04353]
[1763429042943,0.30798278,92119.0,92118.0,0.04353]
[1763429043444,0.04454278,92119.0,92118.0,0.04353]
[1763429043638,0.30798278,92119.0,92118.0,0.04353]
[1763429044038,0.05211,92110.0,92109.0,0.3608]
[1763429044447,0.04438,92110.0,92109.0,0.3608]
[1763429044643,0.04438,92110.0,92109.0,0.40433]
[1763429046142,0.30782,92110.0,92109.0,0.40433]
[1763429046539,0.02255,92110.0,92109.0,0.40433]
[1763429046741,0.04438,92111.0,92110.0,0.03664803]
[1763429046940,0.30782,92111.0,92110.0,0.00219803]
[1763429047136,0.30782,92111.0,92110.0,0.04572803]
[1763429047536,0.04438,92101.0,92100.0,0.00016278]
[1763429047742,0.40518,92101.0,92100.0,0.04589081]
[1763429047943,0.04438,92101.0,92100.0,0.04589081]
[1763429048144,0.04438,92101.0,92100.0,0.02415081]
[1763429048343,0.04438,92101.0,92100.0,0.00236081]
[1763429048533,0.40518,92101.0,92100.0,0.00016278]
[1763429050251,0.49004126,92101.0,92100.0,0.00016278]
[1763429050750,0.04438,92093.0,92092.0,9.899e-05]
[1763429050946,0.66862,92093.0,92092.0,9.899e-05]
[1763429052453,0.04438,92087.0,92083.0,0.00010953]
[1763429052950,0.01119,92092.0,92065.0,0.3608]
[1763429052951,0.04438,92066.0,92065.0,0.3608]
[1763429053155,0.30786,92066.0,92065.0,0.3608]
[1763429053339,0.30795899,92066.0,92065.0,0.3608]
[1763429053537,0.30795899,92066.0,92065.0,1.8608]
[1763429055952,0.39347893,92066.0,92065.0,0.3608]
[1763429056454,0.39347893,92066.0,92065.0,1.5]
[1763429056455,0.75427893,92066.0,92065.0,1.5]
[1763429057050,0.02255,92061.0,92060.0,0.04572803]
[1763429057253,0.75427893,92066.0,92065.0,0.04353]
[1763429057445,0.04438,92061.0,92060.0,0.04572803]
[1763429057953,0.04438,92061.0,92060.0,1.54572803]
[1763429059555,0.39321893,92066.0,92065.0,0.04415]
[1763429060250,0.04412,92061.0,92060.0,1.50219803]
[1763429060942,0.04412,92061.0,92060.0,0.00219803]
[1763429061145,0.04412,92056.0,92055.0,0.00196449]
[1763429061358,0.04412,92047.0,92025.0,0.3608]
[1763429061545,0.04412,92028.0,92027.0,1.5]
[1763429061747,0.30773648,92028.0,92027.0,1.5]
[1763429062051,0.30773648,92028.0,92025.0,0.3608]
[1763429062052,0.04412,92026.0,92025.0,0.3608]
[1763429062355,0.04412,92026.0,92008.0,0.3608]
[1763429062356,0.66853648,92028.0,92020.0,0.00073267]
[1763429062652,0.04412,92021.0,92020.0,0.00073267]
[1763429063152,0.04412,92021.0,92017.0,0.3608]
[1763429063153,0.04412,92018.0,92017.0,0.3608]
[1763429063355,0.30764,92018.0,92017.0,0.3608]
[1763429063543,0.30764,92018.0,92015.0,0.00489048]
[1763429063544,0.04412,92016.0,92015.0,0.00489048]
[1763429063742,0.04412,92016.0,91999.0,0.3608]
[1763429063743,0.04412,92010.0,91999.0,0.3608]
[1763429063947,0.04540042,92010.0,91999.0,0.3608]
[1763429064242,0.40620042,92010.0,91982.0,0.37426]
[1763429065353,0.40620042,92010.0,91990.0,0.3608]
[1763429065754,0.04412,92007.0,91990.0,0.3608]
[1763429065956,0.30768,92007.0,91992.0,0.01346]
[1763429067560,0.30868,92007.0,91992.0,0.01346]
[1763429068256,0.30768,92007.0,91992.0,0.01346]
[1763429068452,0.30868,92007.0,91992.0,0.01346]
[1763429069452,0.001,92007.0,92006.0,0.04387172]
[1763429069659,0.26464,92007.0,92006.0,0.04387172]
[1763429070156,8.239e-05,92010.0,92009.0,0.0436]
[1763429070356,0.40493,92039.0,92038.0,0.02204]